bitfinex-derivatives/quotes_ETHF0:USTF0_20250205
["timestamp","ask_amount","ask_price","bid_price","bid_amount"]
[1738777513714,8.1659,2747.2,2746.3,0.00546309]
[1738777514412,3.2078,2746.9,2746.3,0.00546309]
[1738777516212,3.2078,2746.6,2746.2,0.56059]
[1738777516416,3.2078,2746.3,2745.2,3.2078]
[1738777516608,2.5763,2746.2,2745.2,3.2078]
[1738777516814,2.5763,2746.2,2745.5,3.2078]
[1738777517011,2.5763,2746.2,2745.3,4.76214094]
[1738777517318,3.2078,2746.0,2745.2,3.2078]
[1738777517516,3.2078,2746.0,2745.5,0.00546309]
[1738777517819,3.21326309,2746.0,2745.5,0.00546309]
[1738777518312,3.2078,2745.7,2744.7,3.2078]
[1738777518512,3.2078,2745.7,2744.5,40.8]
[1738777518721,3.2078,2745.7,2744.5,41.09065415]
[1738777518914,3.2078,2745.7,2744.6,4.76225714]
[1738777519311,3.2078,2745.1,2744.4,3.2078]
[1738777519514,2.3851,2745.0,2744.9,0.00546309]
[1738777519711,5.5929,2745.0,2743.5,4.27957143]
[1738777520015,3.2078,2744.5,2743.8,4.69723745]
[1738777520210,2.3851,2745.0,2744.3,4.27957143]
[1738777520405,2.4239,2745.6,2744.5,0.72853]
[1738777520610,2.4239,2745.6,2744.4,16.11093519]
[1738777520810,2.4239,2745.6,2744.6,4.83403703]
[1738777521007,0.00546309,2745.3,2744.7,0.00546309]
[1738777521216,3.21326309,2745.3,2744.7,0.00546309]
[1738777521414,3.2078,2745.0,2744.7,0.00546309]
[1738777521616,3.2078,2745.0,2743.8,3.2078]
[1738777521817,3.2078,2744.7,2743.8,3.2078]
[1738777522115,3.2078,2744.4,2743.9,4.66965685]
[1738777522318,3.2078,2744.4,2743.4,20.0268]
[1738777522319,3.2078,2744.0,2743.4,20.0268]
[1738777522518,3.2078,2744.0,2743.4,3.2078]
[1738777522820,3.2078,2744.0,2743.4,3.2114756]
[1738777523409,3.2078,2743.7,2742.7,3.2078]
[1738777523614,4.27957143,2744.1,2742.7,3.2078]
[1738777523615,3.2078,2743.3,2742.7,3.2078]
[1738777523816,3.2078,2743.3,2742.8,4.6772157]
[1738777524513,3.2078,2743.6,2742.8,4.6772157]
[1738777524813,0.00546309,2743.3,2743.1,0.7289]
[1738777525012,0.00546309,2743.3,2743.0,3.93673]
[1738777525219,0.00546309,2743.3,2743.2,4.84182898]
[1738777525613,0.00546309,2743.3,2743.0,3.50194131]
[1738777526115,0.00546309,2743.3,2743.1,4.84537267]
[1738777526319,0.00546309,2743.3,2743.2,40.8]
[1738777526619,0.00546309,2743.3,2743.2,45.54753487]
[1738777527524,2.5437,2744.0,2743.2,45.54753487]
[1738777527725,5.6173,2744.2,2743.7,3.2078]
[1738777527726,3.2078,2744.2,2743.7,3.2078]
[1738777528131,3.2078,2744.2,2743.3,3.2078]
[1738777528314,3.2078,2744.2,2743.8,4.72881]
[1738777528515,3.2078,2744.2,2743.6,7.93661]
[1738777528822,3.2078,2744.2,2743.9,4.82642131]
[1738777529226,3.2078,2744.2,2743.7,4.82642131]
[1738777529422,4.7585,2744.8,2744.1,3.2078]
[1738777529725,2.349,2744.8,2744.4,3.2078]
[1738777529920,2.4978,2745.6,2744.4,3.2078]
[1738777530121,2.349,2745.5,2744.5,48.76972303]
[1738777530526,0.00546309,2745.3,2744.7,0.00546309]
[1738777531229,0.00546309,2745.3,2743.2,0.2971227]
[1738777531230,0.72864,2744.2,2743.2,0.2971227]
[1738777531420,0.72864,2744.2,2742.8,4.27957143]
[1738777531421,3.2078,2744.5,2743.3,3.2078]
[1738777531626,3.2078,2744.5,2743.4,4.79189231]
[1738777531927,3.2078,2744.5,2743.6,3.2078]
[1738777532429,3.2078,2744.5,2743.8,0.00546309]
[1738777532430,0.00546309,2744.3,2743.8,0.00546309]
[1738777534223,0.00546309,2744.3,2743.8,0.73418309]
[1738777534422,0.00546309,2744.3,2743.9,7.91037084]
[1738777534624,0.00546309,2744.3,2743.8,0.00546309]
[1738777535129,0.00546309,2744.3,2743.9,3.2078]
[1738777535623,0.00546309,2744.3,2743.8,0.00546309]
[1738777536722,0.00546309,2744.3,2743.9,3.2078]
[1738777536919,0.00546309,2744.3,2743.9,7.87437166]
[1738777537930,0.00546309,2744.3,2743.9,3.2078]
[1738777538927,0.00546309,2744.3,2743.8,0.00546309]
[1738777539224,3.2078,2744.1,2743.4,3.2078]
[1738777540425,0.00546309,2744.3,2743.4,3.2078]
[1738777542227,3.2078,2743.6,2743.0,3.2078]
[1738777542426,2.455,2743.5,2743.0,3.2078]
[1738777543529,2.455,2743.5,2743.1,4.82354064]
[1738777543729,3.2078,2743.6,2743.1,4.82354064]
[1738777544131,5.7564,2744.2,2743.3,3.2078]
[1738777544332,2.5486,2744.2,2743.3,3.2078]
[1738777544837,3.2078,2743.4,2742.4,2.0273]
[1738777545128,3.2078,2743.3,2742.1,3.93697]
[1738777545326,2.5486,2743.3,2742.7,3.2078]
[1738777545522,3.2078,2743.9,2743.0,3.2078]
[1738777545731,3.2078,2743.9,2743.3,3.2078]
[1738777545928,3.2078,2743.6,2743.1,4.69616879]
[1738777546128,3.2078,2743.2,2741.9,3.2078]
[1738777546325,3.2078,2743.2,2742.4,4.69616879]
[1738777546528,3.2078,2743.2,2742.3,12.52013058]
[1738777546529,3.2078,2743.2,2742.3,40.8]
[1738777547128,3.2078,2743.2,2742.0,2.5444]
[1738777547526,3.2078,2743.2,2742.0,43.3444]
[1738777548133,3.2078,2743.2,2742.6,3.2078]
[1738777548433,3.2078,2743.6,2742.9,3.2078]
[1738777548629,3.2078,2743.6,2743.0,2.5444]
[1738777548829,3.2078,2743.6,2743.0,7.19575671]
[1738777549834,3.2078,2743.6,2743.0,2.5444]
[1738777551730,3.2078,2743.6,2743.1,4.73951852]
[1738777552137,3.2078,2743.6,2743.0,2.5444]
[1738777553042,3.2078,2743.6,2743.1,4.70225731]
[1738777554235,0.00546309,2743.7,2743.1,4.70225731]
[1738777554743,0.00546309,2743.7,2743.2,40.8]
[1738777555134,0.00546309,2743.7,2743.3,4.65563697]
[1738777555538,0.00546309,2743.7,2743.1,4.21716911]
[1738777555939,0.00546309,2743.7,2743.2,7.96768428]
[1738777556136,0.00546309,2743.7,2743.5,3.2078]
[1738777556342,3.2078,2744.7,2743.5,7.13485075]
[1738777556542,3.2078,2744.7,2744.0,3.92705075]
[1738777556930,3.2078,2744.7,2744.1,4.76781087]
[1738777557330,3.2078,2744.7,2743.8,4.76781087]
[1738777557637,3.21326309,2744.7,2743.7,6.53625278]
[1738777557940,3.21326309,2744.7,2744.0,3.2078]
[1738777558438,0.00546309,2744.7,2744.3,3.2078]
[1738777558647,3.2078,2745.8,2744.6,7.48461934]
[1738777558841,3.2078,2745.8,2744.9,3.2078]
[1738777559236,8.0183,2746.2,2745.2,3.2078]
[1738777559644,8.0183,2746.2,2745.3,4.68259498]
[1738777559944,3.2078,2745.8,2745.4,0.00546309]
[1738777560146,3.2078,2745.5,2745.4,0.00546309]
[1738777560646,3.2078,2745.8,2745.4,0.00546309]
[1738777560834,0.00546309,2746.0,2745.4,3.21326309]
[1738777561039,3.2078,2746.7,2745.4,12.29575664]
[1738777561234,3.2078,2746.7,2745.8,4.27681934]
[1738777561644,3.2078,2746.7,2746.0,3.2078]
[1738777562141,3.2078,2746.7,2746.1,4.75491136]
[1738777562340,0.00546309,2746.6,2746.1,4.75491136]
[1738777563342,0.00546309,2746.6,2746.3,3.2078]
[1738777563541,0.00546309,2746.6,2746.3,3.93587]
[1738777563839,3.2078,2747.6,2746.6,4.27681934]
[1738777564041,2.5608,2747.8,2747.0,3.2078]
[1738777564442,3.2078,2747.7,2747.1,4.83628948]
[1738777564741,3.2078,2747.5,2746.3,5.8216638]
[1738777564940,3.2078,2747.5,2747.1,0.00546309]
[1738777566039,0.00546309,2747.7,2747.1,0.00546309]
[1738777566342,0.00546309,2747.7,2747.4,3.2078]
[1738777566743,0.00546309,2747.7,2747.5,4.72977339]
[1738777567343,0.00546309,2747.7,2747.4,3.2078]
[1738777567542,0.00546309,2747.7,2747.2,2.5047]
[1738777567744,0.00546309,2747.7,2747.1,0.00546309]
[1738777568144,0.00546309,2747.7,2747.2,7.95601141]
[1738777569144,0.00546309,2747.7,2747.5,3.2078]
[1738777569347,3.2078,2748.6,2747.5,3.93554]
[1738777569550,3.2078,2748.6,2747.8,3.2078]
[1738777569946,3.2078,2748.6,2747.9,4.65675236]
[1738777570457,3.2078,2748.9,2747.9,4.65675236]
[1738777570653,0.00546309,2748.5,2747.9,4.65675236]
[1738777573049,0.00546309,2748.5,2748.1,3.2078]
[1738777573248,3.2078,2749.0,2748.4,3.2078]
[1738777573656,3.2078,2749.0,2748.5,4.74670381]
[1738777573845,2.4201,2749.3,2748.7,3.2078]
[1738777573846,3.2078,2749.3,2748.7,3.2078]
[1738777574354,3.2078,2749.3,2748.8,4.73413909]
[1738777574554,3.21144204,2749.3,2748.8,4.73413909]
[1738777575365,0.00364204,2749.3,2748.8,4.73413909]
[1738777575657,3.2078,2750.4,2749.1,0.72731]
[1738777575955,3.2078,2750.4,2749.4,4.27681934]
[1738777576547,3.2078,2750.4,2749.5,12.19935801]
[1738777577952,3.2078,2750.1,2749.0,3.2078]
[1738777578156,3.2078,2750.1,2749.0,7.48461934]
[1738777578454,3.2078,2750.4,2749.4,8.99785427]
[1738777578655,3.2078,2750.4,2749.4,4.27681934]
[1738777578851,3.2078,2750.4,2749.5,12.32406229]
[1738777579050,4.7959,2751.3,2750.2,4.27681934]
[1738777579051,3.2078,2751.1,2750.2,4.27681934]
[1738777579449,4.7959,2751.3,2750.4,0.00545306]
[1738777579658,3.2078,2750.8,2750.4,0.00545306]
[1738777580353,4.7959,2751.3,2750.4,0.00545306]
[1738777580354,3.2078,2750.5,2750.4,0.00545306]
[1738777580553,3.2078,2750.5,2748.6,3.2078]
[1738777580755,3.2078,2749.6,2748.7,3.2078]
[1738777580956,3.2078,2750.2,2749.1,4.82820406]
[1738777581250,5.098,2750.4,2749.0,8.21194934]
[1738777581451,2.5522,2750.4,2749.4,4.27681934]
[1738777581652,0.00541963,2750.0,2749.4,4.27681934]
[1738777581846,0.00541963,2750.0,2749.5,4.7622709]
[1738777582051,0.00541963,2750.0,2749.8,3.2078]
[1738777582458,0.00541963,2750.0,2749.9,4.7622709]
[1738777582763,3.2078,2750.6,2749.9,12.30312646]
[1738777583062,3.2078,2750.6,2749.9,4.7622709]
[1738777585358,3.2078,2750.6,2750.0,7.47787252]
[1738777585758,3.2078,2750.6,2750.1,4.68737812]
[1738777586154,3.2078,2750.6,2749.8,3.2078]
[1738777586357,3.2078,2750.6,2748.7,4.33175]
[1738777586358,2.4947,2750.5,2749.3,44.7936]
[1738777586661,2.4947,2750.5,2748.5,1.81866]
[1738777586662,2.4947,2750.5,2750.2,0.72703]
[1738777586853,3.2078,2750.9,2749.9,8.21171934]
[1738777587054,3.2078,2750.9,2750.3,4.73797407]
[1738777587258,3.2078,2750.9,2750.3,9.74178341]
[1738777587560,3.2078,2750.9,2750.3,5.00381934]
[1738777587865,3.21325306,2750.9,2750.4,4.73797407]
[1738777588564,3.2078,2750.6,2750.4,4.73797407]
[1738777588762,3.2078,2750.6,2750.3,0.00545306]
[1738777589157,3.2078,2750.6,2750.4,4.63621105]
[1738777589555,3.2078,2750.6,2750.3,0.00545306]
[1738777590660,3.2078,2750.6,2749.1,0.72731]
[1738777590661,0.72701,2750.3,2749.1,4.27681934]
[1738777590863,8.2078,2750.6,2748.4,20.0098]
[1738777590864,3.2078,2749.3,2748.4,20.0098]
[1738777591070,3.2078,2749.0,2748.4,16.802]
[1738777591366,3.2078,2749.0,2748.5,4.73757384]
[1738777591864,3.21325306,2749.0,2748.5,4.7430269]
[1738777592455,0.00545306,2749.0,2748.5,4.7430269]
[1738777593461,3.2078,2748.9,2748.5,4.7430269]
[1738777593665,3.2078,2748.8,2748.5,4.7430269]
[1738777595763,3.2078,2748.8,2748.5,0.00545306]
[1738777596172,0.72747,2748.6,2747.1,7.48461934]
[1738777596360,3.2078,2747.8,2747.1,7.48461934]
[1738777596565,3.2078,2747.8,2747.6,4.65748937]
[1738777596871,3.2078,2748.1,2747.3,4.65748937]
[1738777597065,3.2078,2748.1,2747.7,4.81117198]
[1738777597367,3.2078,2748.1,2747.6,4.81662504]
[1738777597569,3.2078,2748.1,2747.6,0.00545306]
[1738777597867,3.2078,2748.1,2747.8,4.81117198]
[1738777598061,3.2078,2748.1,2747.7,4.81117198]
[1738777598260,3.2078,2748.1,2747.6,0.00545306]
[1738777598669,3.2078,2747.8,2747.6,0.00545306]
[1738777599965,4.9541,2747.7,2746.5,0.29541038]
[1738777600167,3.2078,2746.9,2745.9,4.66871934]
[1738777600471,0.72777,2747.5,2746.7,4.71689202]
[1738777600674,3.2078,2746.8,2746.4,4.71689202]
[1738777600971,3.2078,2746.5,2745.9,0.29108447]
[1738777601267,3.2078,2746.5,2746.3,0.00545306]
[1738777601769,3.2078,2746.5,2746.4,4.76455139]
[1738777602173,3.2078,2746.5,2746.3,0.00545306]
[1738777603372,5.8134,2747.7,2746.4,15.50960705]
[1738777603575,3.2078,2747.7,2747.0,0.72787]
[1738777603771,3.2078,2748.0,2747.0,0.72788]
[1738777603966,3.2078,2748.0,2746.9,3.2078]
[1738777603967,3.2078,2748.0,2747.1,4.74671604]
[1738777604172,3.2078,2747.7,2747.1,4.74671604]
[1738777604367,3.2078,2747.7,2747.0,12.46423563]
[1738777604672,3.2078,2747.7,2747.2,4.74671604]
[1738777604673,0.00545306,2747.7,2747.2,4.74671604]
[1738777604872,3.2078,2748.0,2747.2,4.27681934]
[1738777605074,3.2078,2748.0,2747.3,11.47053903]
[1738777605267,2.413,2748.5,2747.3,15.53140668]
[1738777605671,3.2078,2748.3,2747.3,16.25920668]
[1738777605873,3.2078,2748.3,2747.6,4.27681934]
[1738777606176,0.00545306,2748.1,2747.6,7.48461934]
[1738777606374,0.00545306,2748.1,2747.7,45.42296052]
[1738777606576,0.00545306,2748.1,2747.7,45.42841358]
[1738777607166,2.66169116,2748.3,2747.8,0.72765]
[1738777607472,2.66169116,2748.3,2748.0,4.27681934]
[1738777607473,2.39287877,2748.3,2748.0,4.27681934]
[1738777607676,3.2078,2749.0,2748.0,4.27681934]
[1738777607875,3.2078,2749.6,2748.4,4.27681934]
[1738777608177,2.5025,2749.7,2748.8,4.27681934]
[1738777608473,0.00545306,2749.3,2748.8,4.27681934]
[1738777608670,0.00545306,2749.3,2748.9,12.19338159]
[1738777609271,0.00545306,2749.3,2749.2,4.27681934]
[1738777609672,0.00545306,2749.3,2749.2,9.07891031]
[1738777610475,0.00545306,2749.3,2749.2,4.80209097]
[1738777610981,0.00545306,2749.3,2748.8,7.48461934]
[1738777610982,0.00545306,2749.3,2748.9,5.12380999]
[1738777611175,3.2078,2749.7,2749.2,8.96707476]
[1738777611372,5.6615,2750.5,2749.2,4.27681934]
[1738777611573,3.2078,2750.2,2749.2,4.27681934]
[1738777611873,3.2078,2750.2,2749.3,4.69025542]
[1738777612279,5.6615,2750.5,2749.6,4.27681934]
[1738777612675,5.6615,2750.5,2749.7,12.35956656]
[1738777613276,3.2078,2750.5,2749.8,0.72713]
[1738777613781,3.2078,2750.5,2749.9,12.39743179]
[1738777613982,3.2078,2750.5,2749.9,4.61992843]
[1738777614181,3.2078,2750.5,2749.8,12.26259541]
[1738777614373,3.2078,2750.2,2750.0,4.70874411]
[1738777614774,3.2078,2750.2,2749.9,4.70874411]
[1738777614975,3.2078,2750.2,2749.2,4.27681934]
[1738777615288,3.2078,2750.2,2749.8,4.62901883]
[1738777615478,4.9441,2751.3,2749.8,4.62901883]
[1738777615479,3.2078,2749.9,2749.8,0.00545306]
[1738777615985,3.2078,2750.4,2749.8,7.83681883]
[1738777616981,4.9441,2751.3,2749.8,7.83681883]
[1738777616982,3.2078,2750.8,2749.8,7.83681883]
[1738777617784,3.2078,2750.5,2749.8,7.83681883]
[1738777619387,3.2078,2750.5,2749.8,4.62901883]
[1738777620082,3.2078,2750.5,2750.0,3.2078]
[1738777620283,3.2078,2750.5,2749.9,7.76888213]
[1738777620488,3.2078,2750.5,2750.1,4.82261173]
[1738777620685,3.2078,2750.5,2750.0,4.82261173]
[1738777620989,3.2078,2750.2,2749.9,12.40466029]
[1738777621184,3.2078,2750.2,2749.8,0.00545306]
[1738777621392,3.2078,2749.9,2749.8,0.00545306]
[1738777623589,3.2078,2749.9,2749.8,4.66046992]
[1738777625390,3.2078,2749.9,2749.8,0.00545306]
[1738777625580,3.2078,2749.9,2749.8,4.69186905]
[1738777625776,3.2078,2750.5,2749.8,4.69186905]
[1738777626081,3.2078,2750.8,2750.0,7.48461934]
[1738777626385,3.2078,2750.8,2750.4,3.2078]
[1738777626792,2.3833,2751.0,2750.5,4.72182735]
[1738777628388,5.5911,2751.0,2750.5,4.72182735]
[1738777629485,2.3833,2751.0,2750.2,4.6887447]
[1738777629885,2.3833,2751.0,2750.6,4.6887447]
[1738777630084,2.3833,2751.0,2750.2,12.35681884]
[1738777630284,2.3833,2751.0,2750.2,4.75761127]
[1738777630584,5.5911,2751.0,2750.1,3.50061742]
[1738777630785,3.2078,2750.7,2750.2,4.75761127]
[1738777631091,3.2078,2750.7,2749.9,4.92456994]
[1738777631291,3.2078,2750.4,2749.9,4.63125946]
[1738777631493,2.4904,2750.3,2749.9,4.63125946]
[1738777632598,3.2078,2750.0,2749.8,0.00545306]
[1738777633493,2.4904,2750.3,2749.8,0.00545306]
[1738777633794,3.2078,2750.6,2749.9,4.65707298]
[1738777634384,3.2078,2750.3,2749.9,4.65707298]
[1738777634694,3.2078,2750.0,2749.8,0.00545306]
[1738777635188,3.2078,2750.3,2749.8,0.00545306]
[1738777635384,3.2078,2750.0,2749.8,0.00545306]
[1738777635589,3.2078,2750.0,2749.2,7.48461934]
[1738777635794,2.3901,2749.9,2749.2,3.2078]
[1738777635989,2.3901,2749.9,2749.3,4.73784018]
[1738777636398,2.3901,2749.9,2749.2,0.36740002]
[1738777636399,3.2078,2749.6,2749.2,0.36740002]
[1738777636592,3.2078,2749.6,2749.1,40.8]
[1738777636795,3.2078,2749.6,2749.1,0.00545306]
[1738777636985,3.2078,2749.6,2749.2,4.77903735]
[1738777637697,0.00545306,2749.7,2749.2,4.77903735]
[1738777637898,0.00545306,2749.7,2749.2,7.98683735]
[1738777638901,3.2078,2749.6,2749.2,4.77903735]
[1738777639192,3.2078,2749.3,2749.1,0.00545306]
[1738777639395,3.2078,2749.3,2748.4,4.27681934]
[1738777639598,3.2078,2749.3,2748.5,40.8]
[1738777639794,3.2078,2749.3,2748.7,4.78087011]
[1738777639995,3.2078,2749.3,2748.5,45.58087011]
[1738777640194,3.2078,2749.3,2748.6,4.67073055]
[1738777640394,3.2078,2749.3,2748.8,4.67073055]
[1738777640795,3.2078,2749.3,2748.7,4.67618361]
[1738777641002,3.2078,2749.0,2748.7,4.67618361]
[1738777641295,2.5707,2748.9,2748.7,0.00545306]
[1738777643093,3.2078,2748.8,2747.6,4.6383833]
[1738777643293,7.5707,2748.9,2747.0,3.2078]
[1738777643294,3.2078,2748.0,2747.0,3.2078]
[1738777643500,3.2078,2748.0,2747.3,3.2078]
[1738777643696,3.2078,2748.0,2747.6,4.73373919]
[1738777643896,3.2078,2748.0,2747.3,3.2078]
[1738777644292,0.00545306,2747.9,2747.5,0.72773]
[1738777644603,0.00545306,2747.9,2747.4,7.59371033]
[1738777644801,3.2078,2747.5,2747.4,0.39967734]
[1738777645006,3.2078,2747.5,2746.3,0.36450291]
[1738777645195,3.2078,2747.1,2746.0,3.2078]
[1738777645391,4.2822724,2747.9,2746.3,7.91466491]
[1738777645392,3.2078,2747.0,2746.3,7.91466491]
[1738777645592,0.00545306,2747.9,2747.0,3.2078]
[1738777645798,0.00545306,2747.9,2747.1,4.27681934]
[1738777645992,0.00545306,2747.9,2747.2,0.00545306]
[1738777646398,3.21325306,2747.9,2747.3,4.82783154]
[1738777646899,3.21325306,2747.9,2747.3,8.03563154]
[1738777647492,3.2078,2748.3,2747.6,3.2078]
[1738777647895,1.579,2749.2,2747.6,3.2078]
[1738777647896,3.2078,2748.8,2747.7,4.75988296]
[1738777648099,3.2078,2748.8,2747.9,3.2078]
[1738777648301,3.2078,2748.8,2747.7,5.12388296]
[1738777648495,8.2238,2749.1,2748.2,3.2078]
[1738777648801,5.016,2749.1,2748.5,3.2078]
[1738777648992,0.00545306,2748.9,2748.8,3.2078]
[1738777649504,0.00545306,2748.9,2748.8,7.92557147]
[1738777649708,3.2078,2749.8,2748.8,7.92557147]
[1738777650499,3.2078,2749.8,2749.1,3.2078]
[1738777650899,0.00545306,2749.6,2749.2,4.64618077]
[1738777651503,5.016,2750.1,2749.4,3.2078]
[1738777652006,2.5781,2750.1,2749.5,9.09520121]
[1738777652398,3.2078,2750.4,2749.7,3.2078]
[1738777652602,0.00545306,2750.1,2749.9,4.27681934]
[1738777652997,0.00545306,2750.1,2750.0,4.77175952]
[1738777653704,0.00545306,2750.1,2749.7,3.2078]
[1738777653908,3.21325306,2750.1,2749.4,3.2078]
[1738777654304,3.21325306,2750.1,2749.5,4.81892952]
[1738777654607,2.3318,2750.0,2749.4,3.2078]
[1738777655305,3.2078,2750.8,2749.7,3.2078]
[1738777655509,2.6197,2750.9,2750.0,3.2078]
[1738777655719,3.2078,2750.8,2750.0,3.2078]
[1738777656007,2.6197,2750.9,2750.1,4.69103816]
[1738777656403,3.2078,2751.1,2750.4,3.2078]
[1738777656804,3.2078,2751.1,2750.5,4.6441084]
[1738777657009,3.2078,2751.4,2750.5,4.6441084]
[1738777658210,3.2078,2751.1,2750.5,4.6441084]
[1738777658510,3.2078,2751.1,2750.2,0.00545306]
[1738777658511,3.2078,2750.8,2750.2,0.00545306]
[1738777658904,3.2078,2750.8,2750.3,4.67543227]
[1738777659207,3.2078,2751.1,2750.3,4.67543227]
[1738777660198,3.2078,2750.8,2750.3,4.67543227]
[1738777661110,4.27681934,2751.5,2750.2,0.00545306]
[1738777661111,3.2078,2750.5,2750.2,0.00545306]
[1738777662010,3.2078,2750.5,2750.3,4.74681284]
[1738777662213,4.5911,2750.7,2750.3,4.74681284]
[1738777662712,3.2078,2751.0,2750.3,4.74681284]
[1738777663705,5.32023,2751.4,2750.2,0.00545306]
[1738777663706,3.2078,2750.7,2750.2,0.00545306]
[1738777663909,2.2569,2750.6,2750.2,0.00545306]
[1738777664409,2.3407,2750.5,2750.2,0.00545306]
[1738777665012,3.2078,2750.3,2750.2,0.00545306]
[1738777665511,0.72705,2750.2,2749.1,0.3667661]
[1738777665711,3.2078,2749.8,2748.9,3.2078]
[1738777665913,3.2078,2749.8,2749.3,4.67948489]
[1738777666211,3.2078,2749.8,2749.0,4.78150766]
[1738777666512,3.2078,2749.8,2748.9,3.93791304]
[1738777666715,0.00545306,2749.7,2749.1,0.00545306]
[1738777667213,0.00545306,2749.7,2749.5,3.2078]
[1738777667711,0.00545306,2749.7,2749.6,4.76764575]
[1738777668109,5.5485,2750.5,2749.6,4.76764575]
[1738777668307,5.5485,2750.5,2749.8,3.2078]
[1738777668709,5.5485,2750.5,2749.9,4.66741848]
[1738777669008,3.2078,2750.5,2749.9,4.66741848]
[1738777669210,3.2078,2751.0,2750.1,3.2078]
[1738777669415,2.2078,2751.1,2750.1,3.93486]
[1738777669615,3.2078,2751.3,2750.2,4.74059211]
[1738777670614,3.2078,2751.3,2750.4,3.2078]
[1738777671116,2.2078,2751.7,2751.1,3.2078]
[1738777671312,0.72634,2752.9,2751.1,3.2078]
[1738777671313,2.3677,2752.1,2751.1,7.48461934]
[1738777671514,3.2078,2752.3,2751.4,3.2078]
[1738777672012,3.2078,2752.3,2751.5,4.69938465]
[1738777672412,3.2078,2752.0,2751.3,4.7209263]
[1738777672613,3.2078,2752.0,2751.0,3.2078]
[1738777672816,3.2078,2751.6,2751.1,4.7209263]
[1738777673017,3.2078,2751.6,2750.6,3.21325306]
[1738777673316,4.6871,2751.9,2750.8,4.80431612]
[1738777673317,3.2078,2751.3,2750.8,4.80431612]
[1738777673515,3.2078,2751.3,2750.7,4.80431612]
[1738777673713,3.2078,2751.3,2750.9,4.80431612]
[1738777674106,3.2078,2751.6,2750.8,4.80431612]
[1738777674312,3.2078,2751.6,2750.7,4.80431612]
[1738777674620,3.2078,2751.4,2750.9,4.62517324]
[1738777674913,3.2078,2751.4,2750.6,0.00545306]
[1738777674914,3.2078,2751.4,2750.8,4.62517324]
[1738777675105,3.2078,2751.4,2750.7,4.62517324]
[1738777675307,3.2078,2751.4,2750.6,0.00545306]
[1738777675308,3.2078,2751.7,2750.6,3.94018306]
[1738777675509,4.6871,2751.9,2751.3,3.2078]
[1738777675920,4.6871,2751.9,2751.4,4.6557661]
[1738777676113,3.2078,2752.0,2751.4,4.6557661]
[1738777676319,3.2078,2752.4,2751.6,3.2078]
[1738777676817,3.2078,2752.4,2751.9,3.2078]
[1738777677220,4.6349,2752.9,2751.9,3.2078]
[1738777677221,4.6349,2752.9,2752.2,3.2078]
[1738777677413,2.2023,2753.3,2752.2,3.2078]
[1738777677611,2.2023,2753.3,2752.3,4.8230629]
[1738777677918,3.2078,2753.1,2752.5,0.00545306]
[1738777678421,3.2078,2753.1,2752.6,4.79599569]
[1738777678722,3.2078,2752.8,2752.5,0.00545306]
[1738777679516,3.2078,2753.1,2752.6,4.69425815]
[1738777680023,3.2078,2753.1,2752.5,0.00545306]
[1738777680818,2.3132,2753.0,2752.5,0.00545306]
[1738777681317,4.27681934,2752.7,2751.1,3.2078]
[1738777681521,3.2078,2752.4,2751.1,3.2078]
[1738777681722,3.2078,2752.4,2751.6,4.61349526]
[1738777682024,2.1782,2752.6,2751.1,3.2078]
[1738777682025,3.2078,2752.1,2751.1,3.2078]
[1738777682225,2.1878,2752.0,2751.1,3.2078]
[1738777682420,3.2078,2751.8,2751.2,4.81046018]
[1738777682717,3.2078,2751.8,2751.3,0.00545306]
[1738777683024,0.00545306,2751.9,2751.3,0.00545306]
[1738777683025,3.2078,2751.5,2751.3,0.00545306]
[1738777683418,0.00545306,2751.9,2751.3,0.00545306]
[1738777683619,0.00545306,2751.9,2751.4,4.65254283]
[1738777683823,0.00545306,2751.9,2751.4,15.27787546]
[1738777684419,0.00545306,2751.9,2751.7,3.2078]
[1738777684829,0.00545306,2751.9,2751.8,4.6252532]
[1738777685125,0.00545306,2751.9,2751.4,3.2078]
[1738777685521,0.00545306,2751.9,2751.5,4.62269168]
[1738777686428,2.2992,2753.0,2751.9,4.27681934]
[1738777686729,2.2992,2753.0,2752.5,3.2078]
[1738777686918,3.2078,2753.3,2752.5,3.2078]
[1738777687124,3.2078,2753.3,2752.8,3.2078]
[1738777687531,3.2078,2753.3,2752.3,4.27681934]
[1738777687532,3.2078,2753.3,2752.3,19.65416882]
[1738777687833,3.2078,2753.3,2752.8,0.00545306]
[1738777688634,3.2078,2753.3,2752.9,7.91434431]
[1738777688926,3.2078,2753.3,2752.9,3.2078]
[1738777689720,3.2078,2753.3,2753.0,4.82932879]
[1738777691230,3.2078,2753.3,2752.9,3.2078]
[1738777691432,3.2078,2753.3,2752.8,0.00545306]
[1738777691627,3.2078,2752.9,2752.8,0.00545306]
[1738777691834,3.2078,2752.9,2752.2,3.2078]
[1738777692130,3.2078,2752.9,2751.6,3.2078]
[1738777692330,3.2078,2752.9,2751.9,3.2078]
[1738777692732,3.2078,2752.9,2751.6,14.70025293]
[1738777692733,3.2078,2752.9,2752.0,4.75569989]
[1738777693045,3.2078,2752.9,2751.8,3.2078]
[1738777693046,3.2078,2752.9,2752.1,0.00545306]
[1738777693536,3.2078,2752.7,2752.1,0.00545306]
[1738777693835,3.2078,2752.2,2752.1,0.00545306]
[1738777694637,3.2078,2752.2,2751.1,5.4105]
[1738777695039,3.2078,2752.2,2751.2,4.65833699]
[1738777695634,2.1609,2752.7,2751.2,4.65833699]
[1738777695635,3.2078,2751.9,2751.2,4.65833699]
[1738777695842,3.2078,2751.9,2751.4,0.00545306]
[1738777696541,2.3088,2751.8,2751.4,0.00545306]
[1738777697943,2.3034,2751.7,2751.4,0.00545306]
[1738777698141,3.2078,2751.5,2750.4,3.2078]
[1738777698339,3.2078,2751.0,2750.4,3.2078]
[1738777698946,3.2078,2751.6,2750.5,4.73903286]
[1738777699243,2.3034,2751.7,2750.8,3.2078]
[1738777699436,0.00545306,2751.3,2750.8,0.00545306]
[1738777699636,0.00545306,2751.3,2750.9,4.76935841]
[1738777699637,3.2078,2751.2,2750.9,4.76935841]
[1738777700139,3.2078,2751.2,2750.8,0.00545306]
[1738777700342,0.00545306,2751.3,2750.8,0.00545306]
[1738777701232,0.00545306,2751.3,2750.9,4.76957177]